bitfinex/quotes_SOLUSD_20250717
["timestamp","ask_amount","ask_price","bid_price","bid_amount"]
[1752787065353,5.684402,175.92,175.89,34.35]
[1752787065571,10.83570659,175.91,175.89,34.35]
[1752787065874,6.25119477,175.96,175.9,11.51570659]
[1752787066173,31.29467585,175.96,175.91,10.83570659]
[1752787066375,5.68310979,175.96,175.94,10.83570659]
[1752787066682,5.68246391,175.98,175.94,34.32]
[1752787066870,5.68246391,175.98,175.94,45.15570659]
[1752787067055,10.83570659,175.95,175.89,0.03]
[1752787067254,0.56808498,175.94,175.9,34.32]
[1752787067478,10.83570659,175.91,175.9,34.32]
[1752787067788,10.83570659,175.91,175.89,0.03]
[1752787067789,11.49570659,175.91,175.89,0.03]
[1752787068080,11.40379157,175.9,175.89,0.03]
[1752787068255,12.06379157,175.9,175.89,0.03]
[1752787068772,0.56808498,175.92,175.89,0.03]
[1752787068979,5.68472514,175.91,175.89,0.03]
[1752787069160,12.06379157,175.9,175.89,0.03]
[1752787070076,12.06379157,175.9,175.84,0.03]
[1752787070268,10.83570659,175.85,175.84,34.35]
[1752787070470,10.83570659,175.85,175.84,0.03]
[1752787070775,11.49570659,175.85,175.84,0.03]
[1752787070957,5.68698817,175.84,175.79,10.59570659]
[1752787071272,5.68698817,175.84,175.78,0.68]
[1752787071273,10.83570659,175.82,175.75,0.68]
[1752787071470,1.22808498,175.81,175.72,26.1297]
[1752787071666,10.83570659,175.79,175.73,55.02]
[1752787071874,10.83570659,175.8,175.73,55.02]
[1752787072059,10.83570659,175.8,175.75,10.83570659]
[1752787072255,10.83570659,175.8,175.73,55.02]
[1752787072256,11.40379157,175.83,175.76,0.68]
[1752787072771,10.83570659,175.82,175.76,0.68]
[1752787072967,0.56808498,175.83,175.76,0.68]
[1752787073180,10.83570659,175.78,175.73,55.02]
[1752787073380,1.22808498,175.77,175.73,20.02]
[1752787073574,1.22808498,175.77,175.72,34.3]
[1752787073575,10.83570659,175.75,175.72,34.3]
[1752787073884,1.22808498,175.77,175.72,34.3]
[1752787073885,10.83570659,175.76,175.72,34.3]
[1752787074274,10.83570659,175.76,175.71,0.03]
[1752787074275,0.56808498,175.75,175.73,34.32]
[1752787074584,10.83570659,175.76,175.71,0.03]
[1752787074773,10.83570659,175.74,175.72,34.32]
[1752787074972,11.40379157,175.75,175.72,34.32]
[1752787075180,5.69022419,175.74,175.72,34.32]
[1752787075373,5.69022419,175.74,175.71,0.03]
[1752787075374,10.83570659,175.73,175.71,0.03]
[1752787075679,1.22808498,175.73,175.71,34.35]
[1752787075884,11.49570659,175.72,175.71,1e-08]
[1752787076480,0.66,175.72,175.71,1e-08]
[1752787076781,11.49570659,175.72,175.71,1e-08]
[1752787077169,17.18657843,175.72,175.71,1e-08]
[1752787077480,16.78468397,175.71,175.66,1e-08]
[1752787077683,10.83570659,175.67,175.66,1e-08]
[1752787077863,10.83570659,175.62,175.61,0.2]
[1752787078064,11.49570659,175.62,175.61,0.2]
[1752787078372,16.78468397,175.63,175.61,0.68]
[1752787078573,0.56808498,175.62,175.61,0.68]
[1752787078770,0.56808498,175.7,175.61,11.51570659]
[1752787079079,0.56808498,175.7,175.62,0.68]
[1752787079286,5.69184358,175.69,175.65,10.83570659]
[1752787079482,0.56808498,175.68,175.63,46.89570659]
[1752787079660,0.56808498,175.68,175.63,36.06]
[1752787079858,0.56808498,175.68,175.66,10.83570659]
[1752787080062,0.56808498,175.71,175.67,10.83570659]
[1752787080264,0.56808498,175.75,175.7,10.83570659]
[1752787080565,14.88108247,175.8,175.65,47.21570659]
[1752787080566,10.83570659,175.71,175.65,47.21570659]
[1752787080770,10.83570659,175.68,175.65,36.38]
[1752787080962,10.83570659,175.66,175.65,36.38]
[1752787081162,0.66,175.68,175.65,36.38]
[1752787081163,5.6924916,175.67,175.65,36.38]
[1752787081362,0.56808498,175.72,175.66,11.51570659]
[1752787081661,0.56808498,175.73,175.69,10.83570659]
[1752787081861,1.22808498,175.73,175.66,0.68]
[1752787082087,1.22808498,175.73,175.67,36.42]
[1752787082283,1.22808498,175.73,175.67,47.25570659]
[1752787082484,6.25756021,175.77,175.72,10.83570659]
[1752787082681,0.66,175.79,175.75,10.83570659]
[1752787082682,5.68897877,175.78,175.75,10.83570659]
[1752787082882,10.83570659,175.76,175.68,11.54570659]
[1752787083195,10.83570659,175.71,175.67,36.42]
[1752787083374,10.83570659,175.7,175.68,36.44]
[1752787083694,11.40379157,175.69,175.63,0.03]
[1752787083866,10.83570659,175.66,175.63,0.03]
[1752787084061,10.83570659,175.64,175.63,0.03]
[1752787084774,0.69,175.64,175.63,0.03]
[1752787084967,17.13468726,175.64,175.63,0.03]
[1752787085381,16.44468726,175.64,175.63,0.03]
[1752787085697,16.44468726,175.65,175.63,0.03]
[1752787085988,0.56808498,175.69,175.64,53.18468726]
[1752787086201,0.56808498,175.72,175.65,0.71]
[1752787086385,0.56808498,175.72,175.68,16.44468726]
[1752787086693,14.22207187,175.79,175.69,1.27918435]
[1752787086694,5.68956836,175.77,175.69,1.27918435]
[1752787086902,5.68956836,175.77,175.73,16.44468726]
[1752787087209,6.25699437,175.79,175.76,16.44468726]
[1752787087400,0.56808498,175.83,175.78,16.44468726]
[1752787087599,6.25540022,175.83,175.81,16.44468726]
[1752787087778,0.56808498,175.85,175.81,36.76]
[1752787088090,6.25442638,175.86,175.82,16.44468726]
[1752787088272,5.6863414,175.86,175.82,16.44468726]
[1752787088782,5.68593336,175.88,175.84,16.44468726]
[1752787088984,5.68593336,175.88,175.84,0.71]
[1752787089170,5.68593336,175.88,175.84,17.15468726]
[1752787090190,6.25341971,175.9,175.85,0.71]
[1752787090490,6.94341971,175.9,175.85,36.68]
[1752787090785,16.44468726,175.88,175.85,36.68]
[1752787091194,16.44468726,175.86,175.79,0.71]
[1752787091402,16.44468726,175.83,175.79,37.35]
[1752787091978,6.25474975,175.85,175.8,0.71]
[1752787092212,6.25474975,175.85,175.81,17.15468726]
[1752787092699,16.44468726,175.83,175.79,36.64]
[1752787093199,16.44468726,175.84,175.8,0.71]
[1752787093498,16.44468726,175.81,175.79,36.64]
[1752787094398,16.44468726,175.82,175.79,36.64]
[1752787095071,36.91836285,175.83,175.79,37.35]
[1752787095275,16.44468726,175.82,175.79,36.64]
[1752787095584,5.68795859,175.81,175.79,53.79468726]
[1752787095895,16.44468726,175.84,175.8,17.15468726]
[1752787095896,0.56808498,175.84,175.8,17.15468726]
[1752787096193,20.46801674,175.88,175.83,16.44468726]
[1752787096397,20.46801674,175.88,175.84,37.29]
[1752787096698,5.68569479,175.88,175.85,16.44468726]
[1752787096900,5.68503672,175.91,175.87,16.44468726]
[1752787097197,5.68503672,175.91,175.89,16.44468726]
[1752787097374,0.06,175.92,175.9,16.44468726]
[1752787098197,0.06,175.92,175.9,17.15468726]
[1752787098819,0.06,175.92,175.89,36.56]
[1752787099194,0.06,175.92,175.9,16.44468726]
[1752787099516,0.06,175.92,175.9,17.15468726]
[1752787099912,0.06,175.92,175.91,0.71]
[1752787100480,0.06,175.92,175.89,53.00468726]
[1752787100710,0.06,175.92,175.9,17.15468726]
[1752787100916,0.06,175.92,175.91,16.44468726]
[1752787101223,0.06,175.92,175.91,17.15468726]
[1752787102250,0.06,175.92,175.88,17.15468726]
[1752787102509,0.06,175.92,175.9,53.73468726]
[1752787102891,0.06,175.92,175.91,17.15468726]
[1752787104205,0.06,175.92,175.91,17.72315977]
[1752787104414,0.06,175.92,175.91,1.27847251]
[1752787104605,0.06,175.92,175.91,17.72315977]
[1752787106329,0.06,175.92,175.91,23.40788491]
[1752787106616,0.06,175.92,175.91,17.72315977]
[1752787106787,0.06,175.92,175.91,34.50784374]
[1752787106990,0.06,175.92,175.91,40.19256888]
[1752787107227,0.06,175.92,175.91,41.79096888]
[1752787107391,0.06,176.0,175.99,16.44468726]
[1752787107392,5.74181818,176.0,175.99,16.44468726]
[1752787107587,0.06,176.0,175.99,53.61468726]
[1752787107807,0.06,176.0,175.99,37.17]
[1752787108304,0.06,176.0,175.99,36.46]
[1752787108812,16.50468726,176.0,175.93,0.56840788]
[1752787109003,16.44468726,175.98,175.94,36.5]
[1752787109201,16.44468726,175.97,175.94,36.5]
[1752787109405,17.01277224,175.96,175.94,36.5]
[1752787109710,5.68343279,175.95,175.94,36.5]
[1752787110411,6.25151777,175.95,175.94,36.5]
[1752787110715,22.12812005,175.95,175.94,36.5]
[1752787110894,5.68343279,175.95,175.94,36.5]
[1752787111088,14.20678969,175.98,175.94,36.5]
[1752787111089,5.68316441,175.96,175.94,53.65468726]
[1752787111295,5.68214103,175.99,175.95,17.15468726]
[1752787111495,0.06,176.0,175.98,16.44468726]
[1752787111731,0.06,176.0,175.99,52.84468726]
[1752787111935,0.06,176.0,175.99,37.11]
[1752787112422,0.06,176.0,175.99,53.55468726]
[1752787113599,0.06,176.0,175.99,37.11]
[1752787113797,0.06,176.0,175.99,36.4]
[1752787114038,0.06,176.0,175.99,52.84468726]
[1752787114199,0.06,176.0,175.99,36.4]
[1752787114534,17.74277224,176.0,175.99,36.4]
[1752787114703,17.74277224,176.0,175.9,0.56850483]
[1752787114704,17.74277224,176.0,175.92,16.44468726]
[1752787114903,16.44468726,175.95,175.93,36.26]
[1752787115104,0.67,175.99,175.93,36.26]
[1752787115303,0.56808498,175.98,175.95,16.44468726]
[1752787115614,5.68214103,175.99,175.96,36.24]
[1752787116008,5.68214103,175.99,175.96,52.68468726]
[1752787116230,5.68214103,175.99,175.96,53.34468726]
[1752787117825,5.74181818,176.0,175.97,0.66]
[1752787118311,5.74181818,176.0,175.97,17.10468726]
[1752787118505,0.06,176.0,175.98,17.10468726]
[1752787118708,0.06,176.0,175.99,36.08]
[1752787119105,0.06,176.0,175.99,53.18468726]
[1752787119342,0.06,176.0,175.99,36.08]
[1752787119630,0.06,176.0,175.99,53.18468726]
[1752787119805,0.06,176.0,175.99,36.74]
[1752787120220,0.06,176.0,175.99,53.18468726]
[1752787120428,0.06,176.0,175.99,36.08]
[1752787120628,0.06,176.0,175.97,16.44468726]
[1752787120830,0.06,176.0,175.98,52.58468726]
[1752787121052,0.06,176.0,175.98,36.8]
[1752787121248,0.06,176.0,175.99,17.67290136]
[1752787121418,0.56808498,176.08,175.99,17.67290136]
[1752787121616,20.44428464,176.09,176.0,0.66]
[1752787121942,5.67891419,176.09,176.06,16.44468726]
[1752787122254,5.67891419,176.09,176.07,53.24468726]
[1752787122422,5.67891419,176.09,176.08,16.44468726]
[1752787122632,5.67891419,176.09,176.07,53.24468726]
[1752787122819,5.67891419,176.09,176.07,36.14]
[1752787123447,0.76808498,176.1,176.08,0.66]
[1752787123649,0.76808498,176.1,175.98,42.44468726]
[1752787123650,33.88468397,176.08,175.9,0.66]
[1752787123825,7.8763449,176.07,175.9,0.66]
[1752787124017,1.3799449,176.07,176.0,16.44468726]
[1752787124213,16.44468726,176.01,175.94,0.66]
[1752787124412,26.7099449,176.07,175.95,36.06]
[1752787124413,16.44468726,175.97,175.95,36.06]
[1752787124635,16.44468726,175.98,175.95,36.72]
[1752787124941,5.68214103,175.99,175.96,0.66]
[1752787125241,0.70998523,176.06,175.98,16.44468726]
[1752787125452,0.7099449,176.07,176.03,16.44468726]
[1752787125743,5.67930157,176.08,176.04,53.10468726]
[1752787125744,0.70990458,176.08,176.04,53.10468726]
[1752787125954,6.38924396,176.08,176.0,6.45120038]
[1752787126141,22.83393122,176.08,176.02,0.66]
[1752787126325,16.44468726,176.07,176.03,35.96]
[1752787126526,6.38924396,176.08,176.03,53.06468726]
[1752787126829,0.7099449,176.07,176.03,0.66]
[1752787127030,5.67963641,176.07,176.04,35.94]
[1752787127246,22.12432367,176.07,176.04,35.94]
[1752787127442,6.38920798,176.08,176.04,52.38468726]
[1752787127753,0.2,176.1,176.06,16.44468726]
[1752787127754,5.87882494,176.1,176.06,16.44468726]
[1752787127919,5.87882494,176.1,176.05,17.10468726]
[1752787128320,0.70986427,176.09,176.06,0.66]
[1752787128538,0.2,176.1,176.07,16.44468726]
[1752787128743,0.90982396,176.1,176.08,35.88]
[1752787128969,0.2,176.1,176.08,35.88]
[1752787129173,5.87865004,176.1,176.08,35.88]
[1752787129561,17.15455153,176.09,176.08,35.88]
[1752787130463,17.15455153,176.09,176.07,35.82]
[1752787130648,17.11468726,176.08,176.05,35.8]
[1752787130965,22.12456911,176.06,176.05,35.8]
[1752787131170,6.34988185,176.06,176.02,35.78]
[1752787131344,17.15471282,176.05,176.02,35.76]
[1752787131664,0.70998523,176.06,176.02,52.86468726]
[1752787131969,22.8342766,176.07,176.02,52.86468726]
[1752787132146,0.70986427,176.09,176.04,16.44468726]
[1752787132349,0.70986427,176.09,176.06,16.44468726]
[1752787132578,0.90982396,176.1,176.07,52.16468726]
[1752787132870,5.87862156,176.1,176.07,35.72]
[1752787133070,6.58844552,176.1,176.07,35.72]
[1752787133649,5.8786134,176.1,176.07,52.16468726]
[1752787133869,5.8786134,176.1,176.07,35.72]
[1752787134567,0.2,176.1,176.07,35.72]
[1752787134754,5.87861539,176.1,176.07,35.72]
[1752787135669,0.2,176.1,176.07,36.38]
[1752787135976,0.2,176.1,176.07,52.82468726]
[1752787136348,0.2,176.1,176.08,17.10468726]
[1752787136870,0.2,176.1,176.08,0.66]
[1752787137071,0.2,176.1,176.09,16.44468726]
[1752787137271,0.2,176.1,176.09,58.26360145]
[1752787138148,0.2,176.1,176.09,41.81891419]
[1752787138345,0.2,176.1,176.09,52.58468726]
[1752787138545,0.2,176.1,176.09,58.26360145]
[1752787139803,0.70946137,176.19,176.09,89.24557089]
[1752787139962,29.89903792,176.28,176.09,89.24557089]
[1752787139963,0.70934059,176.22,176.18,16.44468726]
[1752787140173,36.30397004,176.24,176.18,17.10468726]
[1752787140355,17.1539876,176.23,176.19,35.36]
[1752787140674,16.44468726,176.2,176.18,35.38]
[1752787140873,0.70946137,176.19,176.17,35.38]
[1752787141048,17.82414863,176.19,176.17,35.38]
[1752787141245,5.67601316,176.18,176.17,35.38]
[1752787141477,6.38524921,176.19,176.16,35.36]
[1752787142048,22.82993647,176.19,176.16,35.36]
[1752787142587,16.44468726,176.17,176.08,12.39255249]
[1752787142775,0.70958219,176.16,176.08,0.68]
[1752787142984,16.44468726,176.15,176.1,16.44468726]
[1752787143154,1.37950164,176.18,176.11,17.12468726]
[1752787143349,5.67633535,176.17,176.12,51.84468726]
[1752787143551,17.15426945,176.16,176.12,35.4]
[1752787143977,17.15426945,176.16,176.11,35.36]
[1752787143978,16.44468726,176.13,176.11,35.36]
[1752787144158,0.68,176.15,176.11,35.36]
[1752787144159,16.44468726,176.12,176.11,35.36]
[1752787144358,17.15443061,176.12,176.11,35.36]
[1752787144975,17.15443061,176.12,176.04,6.5294]
[1752787144976,17.83443061,176.12,176.08,35.34]
[1752787145155,0.70974335,176.12,176.08,35.34]
[1752787145354,5.6785917,176.1,176.08,35.34]
[1752787145584,5.6785917,176.1,176.09,0.68]
[1752787146053,5.67832815,176.11,176.09,0.68]
[1752787146249,5.67832815,176.11,176.08,51.78468726]
[1752787146250,0.70970306,176.13,176.1,17.12468726]
[1752787146480,0.70970306,176.13,176.11,35.28]
[1752787146652,20.57905193,176.15,176.11,35.28]
[1752787146853,20.57905193,176.15,176.11,52.40468726]
[1752787147056,37.02373919,176.15,176.11,35.28]
[1752787147681,37.70373919,176.15,176.11,35.28]
[1752787147876,20.57905193,176.15,176.11,35.28]
[1752787148081,20.57905193,176.15,176.11,51.72468726]
[1752787148082,0.70966276,176.14,176.11,51.72468726]
[1752787148380,16.44468726,176.13,176.11,35.28]
[1752787148579,17.83435002,176.14,176.11,35.28]
[1752787148781,17.15435002,176.14,176.11,35.28]
[1752787149083,17.15435002,176.14,176.1,0.03]
[1752787149084,16.44468726,176.13,176.1,0.03]
[1752787149283,0.70974335,176.12,176.1,35.21]
[1752787149485,5.67826926,176.11,176.1,35.89]
[1752787149789,5.67800047,176.12,176.11,0.68]
[1752787150166,5.67733916,176.14,176.11,17.12468726]
[1752787150479,5.67733916,176.14,176.12,17.12468726]
[1752787150669,5.67733916,176.14,176.13,35.16]
[1752787152971,0.76946137,176.19,176.13,52.28468726]
[1752787153177,17.1541889,176.18,176.13,0.68]
[1752787153391,16.44468726,176.17,176.14,35.08]
[1752787153570,5.67665758,176.16,176.14,35.08]
[1752787153778,5.67665758,176.16,176.14,51.52468726]
[1752787153982,5.67665758,176.16,176.14,35.08]
[1752787154389,17.83430974,176.15,176.1,0.03]
[1752787154595,16.44468726,176.13,176.1,0.03]
[1752787154890,17.15430974,176.15,176.1,0.03]
[1752787155099,17.15430974,176.15,176.1,0.71]
[1752787155392,16.44468726,176.14,176.1,0.71]
[1752787155781,5.67730214,176.14,176.1,17.15468726]
[1752787155978,5.67730214,176.14,176.11,35.68]
[1752787156174,5.67730214,176.14,176.11,52.12468726]
[1752787156378,5.67730214,176.14,176.12,0.68]
[1752787156698,5.67730214,176.14,176.11,35.0]
[1752787156877,5.67730214,176.14,176.11,35.68]
[1752787157582,5.67730214,176.14,176.11,52.12468726]
[1752787158091,5.67730214,176.14,176.12,0.68]
[1752787158274,5.67730214,176.14,176.11,51.44468726]
[1752787158275,5.67730214,176.14,176.11,35.0]
[1752787158475,0.70970306,176.13,176.11,35.0]
[1752787158692,5.67730214,176.14,176.11,35.0]
[1752787159095,36.31524476,176.14,176.1,0.03]
[1752787159392,16.44468726,176.11,176.1,0.03]
[1752787159567,16.44468726,176.12,176.1,0.03]
[1752787159770,1.38970306,176.13,176.1,0.03]
[1752787159771,22.83274017,176.11,176.1,0.03]
[1752787160294,23.51274017,176.11,176.1,0.03]
[1752787160510,5.67826926,176.11,176.1,0.03]
[1752787161072,5.67826926,176.11,176.1,17.15468726]
[1752787161293,5.67801649,176.12,176.1,17.15468726]
[1752787161592,5.67801649,176.12,176.1,0.71]
[1752787161781,5.67762448,176.13,176.1,0.71]
[1752787163197,0.70974335,176.12,176.1,0.03]
[1752787163997,5.67826926,176.11,176.1,0.03]
[1752787165474,5.67826926,176.11,176.1,0.71]
[1752787165895,5.67762448,176.13,176.1,0.71]
[1752787167090,5.67762448,176.13,176.1,11.54229839]
[1752787167811,5.67762448,176.13,176.1,0.71]
[1752787168300,5.67762448,176.13,176.11,10.83229839]
[1752787168878,5.67762448,176.13,176.1,0.71]
[1752787169085,5.67762448,176.13,176.1,11.54229839]
[1752787169302,5.67762448,176.13,176.11,10.83229839]
[1752787170717,5.67762448,176.13,176.1,0.71]
[1752787170718,5.73723466,176.15,176.12,46.17229839]
[1752787171004,5.73723466,176.15,176.13,10.83229839]
[1752787171500,5.73723466,176.15,176.13,11.51229839]
[1752787171691,5.73723466,176.15,176.14,10.83229839]
[1752787171890,0.06,176.15,176.12,34.66]
[1752787172197,0.76962248,176.15,176.1,0.03]
[1752787172379,1.44962248,176.15,176.1,34.69]
[1752787172705,0.76962248,176.15,176.1,46.20229839]
[1752787172998,0.06,176.15,176.13,10.83229839]
[1752787173187,0.06,176.15,176.14,10.83229839]
[1752787173701,0.06,176.15,176.13,35.33]
[1752787173884,0.06,176.15,176.13,34.66]
[1752787175004,0.70966276,176.14,176.1,0.03]
[1752787175208,12.24196115,176.14,176.1,0.03]
[1752787175595,10.83229839,176.13,176.1,0.03]
[1752787175790,0.70974335,176.12,176.1,0.03]
[1752787175997,5.67826926,176.11,176.1,0.03]
[1752787178105,5.67794685,176.12,176.1,0.03]
[1752787178408,12.24208204,176.11,176.1,0.03]
[1752787178719,1.40978365,176.11,176.1,0.03]
[1752787178884,0.70978365,176.11,176.1,0.03]
[1752787179493,6.3876902,176.12,176.1,10.86229839]
[1752787179705,6.3876902,176.12,176.1,11.53229839]
[1752787180003,0.70970306,176.13,176.1,0.03]
[1752787180210,5.67794685,176.12,176.1,0.03]
[1752787180582,11.54208204,176.11,176.1,0.03]
[1752787180786,12.24208204,176.11,176.1,1e-08]
[1752787181202,0.70978365,176.11,176.1,1e-08]
[1752787182007,5.67794685,176.12,176.1,1e-08]
[1752787182197,0.70978365,176.11,176.1,1e-08]
[1752787182396,5.67826926,176.11,176.1,1e-08]
[1752787183586,16.51056765,176.11,176.1,1e-08]
[1752787183898,6.38805291,176.11,176.1,1e-08]
[1752787184210,5.67762448,176.13,176.1,0.67000001]
[1752787184386,5.67762448,176.13,176.11,11.50229839]
[1752787184587,5.67762448,176.13,176.1,1e-08]
[1752787184786,17.21962593,176.13,176.1,1e-08]
[1752787185198,10.83229839,176.12,176.1,1e-08]
[1752787185394,7.08732754,176.13,176.1,1e-08]
[1752787185694,10.83229839,176.12,176.1,1e-08]
[1752787185895,6.38732754,176.13,176.1,1e-08]
[1752787186412,6.38732754,176.13,176.1,0.67000001]
[1752787187616,5.67734515,176.14,176.12,10.83229839]
[1752787187808,5.67734515,176.14,176.1,11.5022984]
[1752787188110,5.67734515,176.14,176.11,10.83229839]
[1752787188317,6.44663068,176.15,176.13,10.83229839]
[1752787188497,6.44663068,176.15,176.11,0.67]
[1752787188690,6.44663068,176.15,176.13,10.83229839]
[1752787188890,6.44663068,176.15,176.14,10.83229839]
[1752787188891,0.06,176.15,176.14,10.83229839]
[1752787189718,0.06,176.15,176.14,11.50229839]
[1752787191193,0.06,176.15,176.14,0.67]
[1752787191397,0.06,176.15,176.14,11.50229839]
[1752787194510,0.06,176.15,176.14,11.78532487]
[1752787195219,0.06,176.15,176.14,11.50229839]
[1752787195995,0.06,176.15,176.14,0.67]
[1752787196297,0.06,176.15,176.14,11.50229839]
[1752787196497,0.06,176.19,176.14,22.33459678]
[1752787196707,0.76,176.19,176.18,10.83229839]
[1752787197028,0.76946137,176.19,176.18,10.83229839]
[1752787197209,0.76946137,176.19,176.1,3.13573681]
[1752787197210,7.14515238,176.19,176.12,0.67]
[1752787197410,7.14515238,176.19,176.18,10.83229839]
[1752787197719,6.44515238,176.19,176.18,10.83229839]
[1752787198097,0.06,176.19,176.18,10.83229839]
[1752787198296,5.67539571,176.2,176.18,10.83229839]
[1752787198502,6.38431192,176.22,176.19,10.83229839]
[1752787198714,6.38431192,176.22,176.21,10.83229839]
[1752787200634,0.7,176.27,176.21,46.12229839]
[1752787200798,6.10036316,176.26,176.21,35.29]
[1752787201105,6.10036316,176.26,176.25,10.83229839]
[1752787201701,6.80036316,176.26,176.25,10.83229839]
[1752787202010,6.10036316,176.26,176.25,10.83229839]
[1752787202437,0.4269262,176.26,176.25,10.83229839]
[1752787202624,6.10036316,176.26,176.25,10.83229839]
[1752787202808,6.77036316,176.26,176.25,10.83229839]
[1752787203008,6.10036316,176.26,176.25,10.83229839]
[1752787203311,0.06,176.32,176.25,22.32459678]
[1752787203515,26.73,176.32,176.31,10.83229839]
[1752787203898,0.1,176.33,176.31,10.83229839]
[1752787204105,5.67022,176.36,176.32,10.83229839]
[1752787204322,5.67022,176.36,176.28,45.43229839]
[1752787204323,5.67022,176.36,176.35,10.83229839]
[1752787204507,6.34022,176.36,176.35,10.83229839]
[1752787204831,20.51577001,176.36,176.27,34.6]
[1752787205000,19.84577001,176.36,176.35,10.83229839]
[1752787205202,19.84577001,176.36,176.28,10.83229839]
[1752787205413,14.17555001,176.36,176.24,0.66]
[1752787205605,14.17555001,176.36,176.25,34.6]
[1752787205606,1.6475,176.34,176.25,34.6]
[1752787205805,1.6475,176.34,176.29,10.83229839]
[1752787205806,7.3247,176.33,176.29,10.83229839]
[1752787206115,0.67,176.32,176.3,10.83229839]
[1752787206319,0.67,176.32,176.31,10.83229839]
[1752787206518,0.67,176.32,176.29,10.83229839]
[1752787206712,0.67,176.32,176.25,34.6]
[1752787207030,0.67,176.32,176.27,10.83229839]
[1752787207230,10.83229839,176.31,176.25,34.6]
[1752787207528,5.67247149,176.29,176.26,10.83229839]
[1752787207728,0.67,176.28,176.26,10.83229839]
[1752787208026,0.67,176.28,176.21,0.66]
[1752787208027,0.67,176.28,176.25,10.83229839]
[1752787208227,19.85365022,176.29,176.24,10.83229839]
[1752787208431,0.67,176.27,176.22,10.83229839]
[1752787208612,11.50229839,176.26,176.19,34.58]
[1752787208809,2.3175,176.25,176.14,0.66]
[1752787209015,12.14979839,176.25,176.2,10.83229839]
[1752787209430,12.14979839,176.25,176.2,0.66]
[1752787209431,5.67408079,176.24,176.2,0.66]
[1752787209622,5.67408079,176.24,176.23,10.83229839]
[1752787209933,14.18106398,176.3,176.23,11.49229839]
[1752787210134,5.67182803,176.31,176.29,10.83229839]
[1752787210431,5.67182803,176.31,176.3,10.83229839]
[1752787210616,5.67182803,176.31,176.29,10.83229839]
[1752787211018,5.67182803,176.31,176.3,10.83229839]
[1752787211238,14.17830156,176.33,176.3,10.83229839]
[1752787211532,14.17830156,176.33,176.22,7.6272]
[1752787211533,10.83229839,176.31,176.25,10.83229839]
[1752787211835,0.08,176.31,176.22,0.66]
[1752787212016,10.91229839,176.31,176.26,10.83229839]
[1752787212215,10.91229839,176.31,176.22,0.66]
[1752787212216,10.83229839,176.31,176.25,10.83229839]
[1752787212536,10.83229839,176.26,176.2,10.83229839]
[1752787212709,10.83229839,176.24,176.19,0.66]
[1752787212910,10.83229839,176.24,176.19,11.49229839]
[1752787213110,10.83229839,176.24,176.21,0.03]
[1752787213312,19.85590286,176.27,176.22,0.66]
[1752787213511,19.85590286,176.27,176.22,10.83229839]
[1752787213814,19.85590286,176.27,176.23,0.66]
[1752787214628,19.85590286,176.27,176.21,0.03]
[1752787214629,10.83229839,176.26,176.21,0.03]
[1752787214856,10.83229839,176.25,176.21,0.03]
[1752787215031,10.83229839,176.26,176.21,0.03]
[1752787215235,5.67375886,176.25,176.21,11.52229839]
[1752787215430,5.67247149,176.29,176.24,10.83229839]
[1752787215634,5.67247149,176.29,176.21,10.86229839]
[1752787215635,10.83229839,176.26,176.21,10.86229839]
[1752787215831,10.83229839,176.26,176.21,11.52229839]
[1752787216225,10.83229839,176.24,176.21,0.03]
[1752787216732,10.83229839,176.23,176.21,0.03]
[1752787216938,19.85365022,176.29,176.21,0.03]
[1752787216939,10.83229839,176.22,176.21,0.03]
[1752787217339,5.67472477,176.22,176.21,0.03]
[1752787217529,16.50702316,176.22,176.21,0.03]
[1752787217833,16.50702316,176.22,176.21,1e-08]
[1752787217834,16.58702316,176.22,176.21,1e-08]
[1752787218231,33.37170713,176.22,176.21,1e-08]
[1752787218538,16.58702316,176.22,176.21,1e-08]
[1752787219140,5.67472477,176.22,176.21,1e-08]
[1752787219343,16.50702316,176.22,176.21,1e-08]